fUST/lending_fUST_20240701
["ID","MTS","AMOUNT","RATE_DAILY","PERIOD"]
[330790416,1719788874886,556.86,0.0001501,2]
[330790417,1719788877152,500.0,0.0001501,2]
[330790418,1719788878548,500.0,0.0001501,2]
[330790419,1719788879772,599.04,0.0001501,2]
[330790420,1719788885454,500.0,0.0001501,2]
[330790421,1719788887085,500.0,0.0001501,2]
[330790422,1719788887428,3990.45,0.0001501,2]
[330790423,1719788890177,666.77,0.0001501,2]
[330790424,1719788891157,1072.65,0.0001501,2]
[330790425,1719788891861,500.0,0.0001501,2]
[330790426,1719788892278,1067.83,0.0001501,2]
[330790427,1719788901840,500.0,0.0001501,2]
[330790429,1719788903783,593.64,0.0001501,2]
[330790430,1719788909696,4352.32,0.0001501,2]
[330790431,1719788911663,500.0,0.0001501,2]
[330790432,1719788918364,500.0,0.0001501,2]
[330790436,1719788922086,1368.1,0.0001501,2]
[330790438,1719788936946,500.0,0.0001501,2]
[330790439,1719788938955,500.0,0.0001501,2]
[330790440,1719788941057,500.0,0.0001501,2]
[330790441,1719788943923,3824.18,0.0001501,2]
[330790442,1719788948504,1114.2,0.0001501,2]
[330790443,1719788950033,500.0,0.0001501,2]
[330790444,1719788951548,7959.74,0.0001501,2]
[330790446,1719788958921,500.0,0.0001501,2]
[330790447,1719788959789,500.0,0.0001501,2]
[330790448,1719788962332,-500.0,0.00015011,2]
[330790449,1719788962361,-176.94926158,0.00015011,2]
[330790450,1719788962396,-323.05073842,0.00015011,2]
[330790451,1719788962424,-230.71261421,0.00015011,2]
[330790456,1719788972989,500.0,0.0001501,2]
[330790457,1719788977887,1311.1,0.0001501,2]
[330790458,1719788978147,500.0,0.0001501,2]
[330790459,1719788979548,500.0,0.0001501,2]
[330790460,1719788983983,500.0,0.0001501,2]
[330790461,1719788984033,500.0,0.0001501,2]
[330790462,1719788986339,500.0,0.0001501,2]
[330790463,1719788987027,435.07673899,0.0001501,2]
[330790464,1719788987301,-269.28738579,0.00015011,2]
[330790465,1719788987333,-432.27612807,0.00015011,2]
[330790466,1719788987370,-67.72387193,0.00015011,2]
[330790467,1719788987403,-483.30466557,0.00015011,2]
[330790468,1719788988882,500.0,0.0001501,2]
[330790469,1719788994299,10237.84,0.0001501,2]
[330790470,1719788995518,500.0,0.0001501,2]
[330790471,1719788995584,1885.5,0.0001501,2]
[330790472,1719788996007,7628.08,0.0001501,2]
[330790473,1719788996541,1885.5,0.0001501,2]
[330790474,1719788997897,500.0,0.0001501,2]
[330790475,1719789000088,500.0,0.0001501,2]
[330790476,1719789001972,782.32,0.0001501,2]
[330790477,1719789002439,500.0,0.0001501,2]
[330790478,1719789003839,515.77,0.0001501,2]
[330790479,1719789010983,1484.98,0.0001501,2]
[330790480,1719789013800,500.0,0.0001501,2]
[330790481,1719789014046,500.0,0.0001501,2]
[330790482,1719789014326,590.39,0.0001501,2]
[330790483,1719789020859,500.0,0.0001501,2]
[330790484,1719789021759,6552.1,0.0001501,2]
[330790485,1719789024371,500.0,0.0001501,2]
[330790486,1719789031420,500.0,0.0001501,2]
[330790567,1719789032859,-18.59237419,0.00015011,2]
[330790569,1719789032869,-527.19,0.00015011,2]
[330790571,1719789032879,-311.19080345,0.00015011,2]
[330790617,1719789033324,500.0,0.0001501,2]
[330790658,1719789038143,500.0,0.0001501,2]
[330790663,1719789039782,-5296.16020679,0.00015011,2]
[330790664,1719789039795,-162.06898976,0.00015011,2]
[330790665,1719789039806,-506.85,0.00015011,2]
[330790666,1719789039816,-1139.55,0.00015011,2]
[330790667,1719789039826,-1202.83,0.00015011,2]
[330790668,1719789039836,-802.45,0.00015011,2]
[330790669,1719789039846,-500.0,0.00015011,2]
[330790670,1719789039856,-1164.71,0.00015011,2]
[330790671,1719789039866,-644.94,0.00015011,2]
[330790672,1719789039876,-500.0,0.00015011,2]
[330790673,1719789039886,-4490.16700952,0.00015011,2]
[330790683,1719789042197,500.0,0.0001501,2]
[330790684,1719789042241,749.87,0.00010959,2]
[330790685,1719789042627,1978.85,0.0001501,2]
[330790686,1719789043350,587.0,0.0001501,2]
[330790719,1719789043974,-4670.59299048,0.00015011,2]
[330790720,1719789043986,-500.0,0.00015011,2]
[330790722,1719789043995,-1299.81,0.00015011,2]
[330790724,1719789044005,-2508.52,0.00015011,2]
[330790726,1719789044014,-985.34,0.00015011,2]
[330790728,1719789044025,-500.0,0.00015012,2]
[330790730,1719789044035,-500.0,0.00015012,2]
[330790732,1719789044044,-500.0,0.00015012,2]
[330790733,1719789044053,-1160.53,0.00015012,2]
[330790735,1719789044063,-5900.59,0.00015012,2]
[330790737,1719789044072,-1155.58,0.00015012,2]
[330790739,1719789044081,-392.40600233,0.00015012,2]
[330790741,1719789044091,-805.62,0.00015012,2]
[330790742,1719789044101,-801.04,0.00015012,2]
[330790744,1719789044110,-2395.17236885,0.00015012,2]
[330790745,1719789044122,-6565.08763115,0.00015012,2]
[330790746,1719789044131,-1885.5,0.00015012,2]
[330790747,1719789044140,-544.6178456,0.0001522,2]
[330790748,1719789044149,-1885.5,0.00015557,2]
[330790749,1719789044158,-541.70155255,0.00015558,2]
[330790751,1719789044305,-85.01844745,0.00015558,2]
[330790752,1719789044315,-500.0,0.00015558,2]
[330790753,1719789044324,-454.75155255,0.00015558,2]
[330790762,1719789045090,503.39323866,0.0001501,2]
[330790766,1719789046693,190.75463863,0.0001501,2]
[330790767,1719789048640,500.0,0.0001501,2]
[330790783,1719789049451,-500.0,0.00015011,2]
[330790784,1719789049462,-119.04844745,0.00015558,2]
[330790786,1719789049471,-500.0,0.00015558,2]
[330790788,1719789049481,-500.0,0.00015558,2]
[330790789,1719789049490,-500.0,0.00015558,2]
[330790790,1719789049499,-500.0,0.00015558,2]
[330790791,1719789049508,-725.93,0.00015558,2]
[330790792,1719789049518,-500.0,0.00015558,2]
[330790793,1719789049526,-500.0,0.00015558,2]
[330790794,1719789049535,-500.0,0.00015558,2]
[330790795,1719789049544,-500.0,0.00015558,2]
[330790796,1719789049553,-500.0,0.00015558,2]
[330790797,1719789049562,-151.0,0.00015558,2]
[330790798,1719789049572,-496.86730005,0.00015558,2]
[330790799,1719789049586,-500.0,0.00015558,2]
[330790800,1719789049595,-500.0,0.00015558,2]
[330790801,1719789049605,-500.0,0.00015558,2]
[330790802,1719789049615,-500.0,0.00015558,2]
[330790803,1719789049624,-500.0,0.00015558,2]
[330790804,1719789049634,-616.65309224,0.00015558,2]
[330790805,1719789049643,-500.0,0.00015558,2]
[330790806,1719789049652,-500.0,0.00015558,2]
[330790807,1719789049662,-526.06,0.00015558,2]
[330790808,1719789049671,-500.0,0.00015558,2]
[330790809,1719789049680,-500.0,0.00015558,2]
[330790810,1719789049689,-1132.86,0.00015558,2]
[330790811,1719789049698,-500.0,0.00015558,2]
[330790813,1719789049710,-500.0,0.00015558,2]
[330790814,1719789049719,-1567.25,0.00015558,2]
[330790815,1719789049729,-500.0,0.00015558,2]
[330790816,1719789049738,-500.0,0.00015558,2]
[330790817,1719789049747,-500.0,0.00015558,2]
[330790818,1719789049756,-500.0,0.00015558,2]
[330790819,1719789049766,-500.0,0.00015558,2]
[330790820,1719789049775,-500.0,0.00015558,2]
[330790821,1719789049784,-500.0,0.00015558,2]
[330790822,1719789049794,-500.0,0.00015558,2]
[330790823,1719789049804,-500.0,0.00015558,2]
[330790824,1719789049814,-500.0,0.00015558,2]
[330790825,1719789049823,-698.24,0.00015558,2]
[330790826,1719789049832,-500.0,0.00015558,2]
[330790827,1719789049842,-500.0,0.00015558,2]
[330790828,1719789049850,-1194.33,0.00015558,2]
[330790829,1719789049860,-500.0,0.00015558,2]
[330790830,1719789049869,-500.0,0.00015558,2]
[330790831,1719789049879,-1645.93,0.00015558,2]
[330790832,1719789049888,-160.28154409,0.00015558,2]
[330790833,1719789049897,-841.01,0.00015558,2]
[330790834,1719789049906,-500.0,0.00015558,2]
[330790835,1719789049915,-500.0,0.00015558,2]
[330790836,1719789049924,-500.0,0.00015558,2]
[330790837,1719789049933,-526.78,0.00015558,2]
[330790838,1719789049942,-500.0,0.00015558,2]
[330790839,1719789049952,-998.16,0.00015558,2]
[330790840,1719789049962,-500.0,0.00015558,2]
[330790841,1719789049971,-952.09,0.00015558,2]
[330790842,1719789049981,-500.0,0.00015558,2]
[330790843,1719789049991,-467.64133029,0.00015558,2]
[330790844,1719789050001,-972.05,0.00015558,2]
[330790845,1719789050010,-556.34,0.00015558,2]
[330790846,1719789050019,-500.0,0.00015558,2]
[330790847,1719789050029,-500.0,0.00015558,2]
[330790848,1719789050038,-500.0,0.00015558,2]
[330790849,1719789050047,-500.0,0.00015558,2]
[330790850,1719789050056,-608.18,0.00015558,2]
[330790851,1719789050065,-500.0,0.00015558,2]
[330790852,1719789050075,-500.0,0.00015558,2]
[330790853,1719789050084,-533.73,0.00015558,2]
[330790854,1719789050093,-500.0,0.00015558,2]
[330790855,1719789050104,-500.0,0.00015558,2]
[330790856,1719789050113,-500.0,0.00015558,2]
[330790857,1719789050123,-500.0,0.00015558,2]
[330790858,1719789050132,-500.0,0.00015558,2]
[330790859,1719789050142,-500.0,0.00015558,2]
[330790860,1719789050151,-559.2,0.00015558,2]
[330790861,1719789050161,-500.0,0.00015558,2]
[330790862,1719789050170,-500.0,0.00015558,2]
[330790863,1719789050179,-880.231638,0.00015558,2]
[330790864,1719789050189,-880.231638,0.00015558,2]
[330790865,1719789050199,-880.231638,0.00015558,2]
[330790866,1719789050210,-880.231638,0.00015558,2]
[330790867,1719789050336,-867.68,0.00015558,2]
[330790868,1719789050346,-500.0,0.00015558,2]
[330790869,1719789050355,-500.0,0.00015558,2]
[330790870,1719789050364,-500.0,0.00015558,2]
[330790871,1719789050373,-500.0,0.00015558,2]
[330790872,1719789050383,-500.0,0.00015558,2]
[330790873,1719789050392,-742.16,0.00015558,2]
[330790874,1719789050402,-151.0,0.00015558,2]
[330790875,1719789050411,-151.0,0.00015558,2]
[330790876,1719789050420,-500.0,0.00015558,2]
[330790877,1719789050429,-841.92,0.00015558,2]
[330790878,1719789050439,-500.0,0.00015558,2]
[330790879,1719789050448,-500.0,0.00015558,2]
[330790880,1719789050462,-500.0,0.00015558,2]
[330790881,1719789050470,-975.46,0.00015558,2]
[330790882,1719789050483,-500.0,0.00015558,2]
[330790883,1719789050492,-500.0,0.00015558,2]
[330790884,1719789050501,-151.0,0.00015558,2]
[330790885,1719789050511,-151.0,0.00015558,2]
[330790886,1719789050520,-151.0,0.00015558,2]
[330790887,1719789050529,-151.0,0.00015558,2]
[330790888,1719789050539,-500.0,0.00015558,2]
[330790889,1719789050547,-500.0,0.00015558,2]
[330790890,1719789050557,-2394.76,0.00015558,2]
[330790891,1719789050567,-584.05,0.00015558,2]
[330790892,1719789050580,-500.0,0.00015558,2]
[330790893,1719789050589,-151.0,0.00015558,2]
[330790894,1719789050599,-151.0,0.00015558,2]
[330790895,1719789050608,-1123.01,0.00015558,2]
[330790896,1719789050618,-137.4312212,0.00015558,2]
[330790897,1719789050834,500.0,0.0001501,2]
[330790898,1719789050879,500.0,0.0001501,2]
[330790899,1719789051743,638.99,0.0001501,2]
[330790900,1719789052167,3664.84,0.0001501,2]
[330790901,1719789053027,595.32,0.0001501,2]
[330790902,1719789054268,1571.25,0.0001501,2]
[330790903,1719789057270,546.81,0.0001501,2]
[330790904,1719789059723,5529.02,0.0001501,2]
[330790905,1719789059768,500.0,0.0001501,2]
[330790906,1719789060361,501.86105742,0.0001501,2]
[330790907,1719789061201,500.0,0.0001501,2]
[330790908,1719789064833,500.0,0.0001501,2]
[330790909,1719789066711,500.0,0.0001501,2]
[330790910,1719789068875,503.61881142,0.0001501,2]
[330790911,1719789074446,500.0,0.0001501,2]
[330790912,1719789076071,183.79379664,0.0001501,2]
[330790913,1719789077826,1256.47,0.0001501,2]
[330790914,1719789083083,500.0,0.0001501,2]
[330790915,1719789084610,500.0,0.0001501,2]
[330790916,1719789084847,500.0,0.0001501,2]
[330790917,1719789087082,500.0,0.0001501,2]
[330790918,1719789088407,506.54465184,0.0001501,2]
[330790919,1719789091496,511.11373766,0.0001501,2]
[330790920,1719789096121,615.0147293,0.0001501,2]
[330790921,1719789097306,505.21161363,0.0001501,2]
[330790922,1719789098229,500.0,0.0001501,2]
[330790923,1719789101280,570.0,0.0001501,2]
[330790924,1719789102633,500.0,0.0001501,2]
[330790925,1719789103239,3512.13,0.0001501,2]
[330790926,1719789103285,500.0,0.0001501,2]
[330790927,1719789103523,612.37,0.0001501,2]
[330790928,1719789106338,508.93042201,0.0001501,2]
[330790929,1719789108378,500.0,0.0001501,2]
[330790930,1719789109238,500.0,0.0001501,2]
[330790931,1719789110464,1059.29,0.0001501,2]
[330790932,1719789110773,500.0,0.0001501,2]
[330790933,1719789114308,503.28794305,0.0001501,2]
[330790934,1719789115698,250.0,0.0001501,2]
[330790935,1719789116714,500.0,0.0001501,2]
[330790936,1719789119110,500.0,0.0001501,2]
[330790937,1719789119612,686.27,0.0001501,2]
[330790938,1719789126928,500.0,0.0001501,2]
[330790939,1719789127522,500.0,0.0001501,2]
[330790940,1719789132026,1204.12,0.0001501,2]
[330790941,1719789136647,500.0,0.0001501,2]
[330790942,1719789136867,503.2610784,0.0001501,2]
[330790943,1719789141005,1092.07,0.0001501,2]
[330790944,1719789142991,502.23422615,0.0001501,2]
[330790945,1719789145026,503.23487463,0.0001501,2]
[330790946,1719789145326,503.28398581,0.0001501,2]
[330790947,1719789147683,500.0,0.0001501,2]
[330790948,1719789147730,500.0,0.0001501,2]
[330790949,1719789148742,500.0,0.0001501,2]
[330790950,1719789153169,514.81833942,0.0001501,2]
[330790951,1719789153218,1505.78,0.0001501,2]
[330790952,1719789153564,500.0,0.0001501,2]
[330790953,1719789157840,491.52231377,0.0001501,2]
[330790954,1719789162277,625.86098148,0.0001501,2]
[330790955,1719789162812,500.0,0.0001501,2]
[330790957,1719789166060,500.0,0.0001501,2]
[330790958,1719789167347,502.11658079,0.0001501,2]
[330790959,1719789167399,500.0,0.0001501,2]
[330790960,1719789167771,500.0,0.0001501,2]
[330790961,1719789170410,500.0,0.0001501,2]
[330790962,1719789171410,525.6664527,0.00014999,2]
[330790963,1719789178987,502.25131364,0.0001501,2]
[330790964,1719789181717,224.17609177,0.0001501,2]
[330790965,1719789187578,507.04546922,0.0001501,2]
[330790966,1719789191040,154.83742071,0.00014999,2]
[330790967,1719789193916,9811.26,0.0001501,2]
[330790968,1719789195123,500.0,0.0001501,2]
[330790969,1719789196593,500.0,0.0001501,2]
[330790970,1719789198172,500.0,0.0001501,2]
[330790971,1719789202397,500.0,0.0001501,2]
[330790972,1719789204765,1443.04,0.0001501,2]
[330790973,1719789208406,500.0,0.0001501,2]
[330790974,1719789208864,508.38639762,0.0001501,2]
[330790975,1719789210292,500.0,0.0001501,2]
[330790976,1719789210891,500.0,0.0001501,2]
[330790977,1719789216442,618.07,0.0001501,2]
[330790978,1719789217128,500.0,0.0001501,2]
[330790979,1719789218773,168.54679431,0.0001501,2]
[330790980,1719789220546,502.24248115,0.0001501,2]
[330790981,1719789225817,791.76,0.0001501,2]
[330790982,1719789230155,500.0,0.0001501,2]
[330790983,1719789232638,500.0,0.0001501,2]
[330790984,1719789247406,500.0,0.0001501,2]
[330790985,1719789249786,562.54,0.0001501,2]
[330790986,1719789252044,5298.65,0.0001501,2]
[330790987,1719789252156,9402.46,0.0001501,2]
[330790988,1719789254557,500.0,0.0001501,2]
[330790989,1719789254615,500.0,0.0001501,2]
[330790990,1719789255963,586.85,0.0001501,2]
[330790991,1719789268454,500.0,0.0001501,2]
[330790992,1719789269339,500.0,0.0001501,2]
[330790993,1719789270782,501.83450842,0.0001501,2]
[330790994,1719789272339,502.55385345,0.0001501,2]
[330790995,1719789273953,500.0,0.0001501,2]
[330790996,1719789274844,502.90286429,0.0001501,2]
[330790997,1719789276999,893.58,0.0001501,2]
[330790998,1719789285826,5077.87,0.0001501,2]
[330790999,1719789293588,500.0,0.0001501,2]
[330791000,1719789299344,548.96,0.0001501,2]
[330791001,1719789299974,539.1,0.0001501,2]
[330791002,1719789302842,500.0,0.0001501,2]
[330791003,1719789303101,500.0,0.0001501,2]
[330791004,1719789304471,520.4917152,0.0001501,2]
[330791005,1719789304785,150.83408251,0.00020328,30]
[330791006,1719789306486,150.83408251,0.00019921,120]
[330791007,1719789306958,529.47140074,0.0001501,2]
[330791008,1719789307788,1046.57,0.0001501,2]
[330791009,1719789317660,500.0,0.0001501,2]
[330791010,1719789317980,500.0,0.0001501,2]
[330791011,1719789318668,1112.17,0.0001501,2]
[330791013,1719789319169,500.0,0.0001501,2]
[330791014,1719789319551,500.0,0.0001501,2]
[330791015,1719789322187,500.0,0.0001501,2]
[330791016,1719789324323,500.0,0.0001501,2]
[330791017,1719789325024,501.82453148,0.0001501,2]
[330791018,1719789325925,500.0,0.0001501,2]
[330791019,1719789329729,4866.29,0.0001501,2]
[330791020,1719789332090,500.0,0.0001501,2]
[330791021,1719789332440,500.0,0.0001501,2]
[330791022,1719789337071,578.33,0.0001501,2]
[330791023,1719789339692,1002.96,0.0001501,2]
[330791024,1719789342421,500.0,0.0001501,2]
[330791027,1719789346510,500.0,0.0001501,2]
[330791029,1719789350668,592.32,0.0001501,2]
[330791030,1719789352546,500.0,0.0001501,2]
[330791031,1719789353588,500.0,0.0001501,2]
[330791032,1719789358880,500.0,0.0001501,2]
[330791033,1719789359433,506.40927252,0.0001501,2]
[330791034,1719789359495,5654.74,0.0001501,2]
[330791035,1719789362155,1472.95,0.0001501,2]
[330791037,1719789364598,500.0,0.0001501,2]
[330791038,1719789365515,772.83,0.0001501,2]
[330791039,1719789368760,500.0,0.0001501,2]
[330791040,1719789374604,500.0,0.0001501,2]
[330791041,1719789377340,500.0,0.0001501,2]
[330791042,1719789378491,500.0,0.0001501,2]
[330791043,1719789378688,255.05461284,0.0001501,2]
[330791044,1719789380044,502.41273398,0.0001501,2]
[330791045,1719789381501,500.0,0.0001501,2]
[330791046,1719789383000,500.0,0.0001501,2]
[330791047,1719789383366,500.0,0.0001501,2]
[330791048,1719789386233,500.0,0.0001501,2]
[330791049,1719789390331,500.0,0.0001501,2]
[330791050,1719789390804,502.42472393,0.0001501,2]
[330791052,1719789395219,500.0,0.0001501,2]
[330791053,1719789395359,508.30808108,0.0001501,2]
[330791054,1719789395405,500.0,0.0001501,2]
[330791055,1719789397994,533.43,0.0001501,2]
[330791056,1719789399080,500.0,0.0001501,2]
[330791057,1719789400666,394.18557084,0.0001501,2]
[330791058,1719789400921,500.0,0.0001501,2]
[330791059,1719789402261,4663.53,0.0001501,2]
[330791060,1719789403061,500.0,0.0001501,2]
[330791061,1719789403272,1143.64,0.0001501,2]
[330791062,1719789403787,500.0,0.0001501,2]
[330791063,1719789407613,500.0,0.0001501,2]
[330791065,1719789408916,816.21,0.0001501,2]
[330791066,1719789409715,567.64,0.0001501,2]
[330791067,1719789410840,224.65579073,0.0001501,2]
[330791068,1719789410926,961.17,0.0001501,2]
[330791069,1719789414614,1000.0,0.0001501,2]
[330791070,1719789423956,526.09,0.0001501,2]
[330791071,1719789424326,500.0,0.0001501,2]
[330791072,1719789428243,500.0,0.0001501,2]
[330791073,1719789428742,500.0,0.0001501,2]
[330791074,1719789430262,500.0,0.0001501,2]
[330791075,1719789432537,500.0,0.0001501,2]
[330791077,1719789436457,500.0,0.0001501,2]
[330791078,1719789438510,500.0,0.0001501,2]
[330791079,1719789439894,10523.27,0.0001501,2]
[330791080,1719789440605,500.0,0.0001501,2]
[330791081,1719789441739,500.0,0.0001501,2]
[330791082,1719789442863,500.0,0.0001501,2]
[330791083,1719789444725,1107.43,0.0001501,2]
[330791084,1719789446507,500.0,0.0001501,2]
[330791085,1719789449052,502.60970296,0.0001501,2]
[330791086,1719789449386,500.0,0.0001501,2]
[330791088,1719789450543,500.0,0.0001501,2]
[330791089,1719789451034,500.0,0.0001501,2]
[330791091,1719789453414,500.0,0.0001501,2]
[330791092,1719789454263,1470.34,0.0001501,2]
[330791093,1719789454863,500.0,0.0001501,2]
[330791094,1719789456578,500.0,0.0001501,2]
[330791095,1719789459224,515.56901646,0.0001501,2]
[330791096,1719789459884,550.69958915,0.0001501,2]
[330791097,1719789460304,452.32130888,0.0001501,2]
[330791098,1719789460448,500.0,0.0001501,2]
[330791099,1719789463937,500.0,0.0001501,2]
[330791101,1719789466561,500.0,0.0001501,2]
[330791102,1719789466968,2776.19,0.0001501,2]
[330791103,1719789469192,500.0,0.0001501,2]
[330791104,1719789470929,500.0,0.0001501,2]
[330791105,1719789471676,501.75361061,0.0001501,2]
[330791106,1719789474736,500.0,0.0001501,2]
[330791107,1719789476222,500.0,0.0001501,2]
[330791108,1719789477163,921.12,0.0001501,2]
[330791110,1719789481699,500.0,0.0001501,2]
[330791111,1719789482115,543.99,0.0001501,2]
[330791112,1719789484050,504.17,0.0001501,2]
[330791113,1719789485039,500.0,0.0001501,2]
[330791114,1719789486318,500.0,0.0001501,2]
[330791115,1719789488237,500.0,0.0001501,2]
[330791116,1719789488942,500.0,0.0001501,2]
[330791117,1719789491522,500.0,0.0001501,2]
[330791118,1719789494399,500.0,0.0001501,2]
[330791119,1719789494973,500.0,0.0001501,2]
[330791120,1719789495913,1065.83,0.0001501,2]
[330791121,1719789497199,500.0,0.0001501,2]
[330791122,1719789497401,500.0,0.0001501,2]
[330791123,1719789498522,509.42607985,0.0001501,2]
[330791124,1719789498863,500.0,0.0001501,2]
[330791125,1719789498916,660.89,0.0001501,2]
[330791126,1719789503542,500.0,0.0001501,2]
[330791127,1719789503585,810.83,0.0001501,2]
[330791128,1719789505984,500.0,0.0001501,2]
[330791129,1719789506654,521.59494068,0.0001501,2]
[330791130,1719789512678,500.0,0.0001501,2]
[330791131,1719789515413,772.05,0.0001501,2]
[330791132,1719789518421,500.0,0.0001501,2]
[330791133,1719789519644,535.52994753,0.0001501,2]
[330791134,1719789524329,500.0,0.0001501,2]
[330791135,1719789527786,500.0,0.0001501,2]
[330791136,1719789527982,500.0,0.0001501,2]
[330791137,1719789529814,500.0,0.00014911,2]
[330791138,1719789535518,500.0,0.0001501,2]
[330791139,1719789537620,500.0,0.0001501,2]
[330791140,1719789540292,5419.12,0.0001501,2]
[330791141,1719789543786,521.32,0.0001501,2]
[330791142,1719789543902,500.0,0.0001501,2]
[330791143,1719789546834,500.0,0.0001501,2]
[330791144,1719789550050,500.0,0.0001501,2]
[330791145,1719789551247,2195.2,0.0001501,2]
[330791146,1719789552746,1021.42,0.0001501,2]
[330791147,1719789558016,500.0,0.0001501,2]
[330791148,1719789568731,500.80688013,0.0001501,2]
[330791149,1719789570019,500.0,0.0001501,2]
[330791150,1719789570814,2528.04,0.0001501,2]
[330791151,1719789576175,503.51893587,0.0001501,2]
[330791152,1719789577662,509.97,0.0001501,2]
[330791153,1719789581017,500.0,0.0001501,2]
[330791154,1719789581802,1261.91,0.0001501,2]
[330791155,1719789582629,769.01,0.0001501,2]
[330791157,1719789593950,500.0,0.0001501,2]
[330791158,1719789594152,500.0,0.0001501,2]
[330791159,1719789594689,5193.33,0.0001501,2]
[330791160,1719789595095,500.0,0.0001501,2]
[330791161,1719789598469,830.61,0.0001501,2]
[330791162,1719789601788,500.0,0.0001501,2]
[330791163,1719789602353,500.0,0.0001501,2]
[330791164,1719789608226,1211.95,0.0001501,2]
[330791165,1719789609221,500.0,0.0001501,2]
[330791166,1719789611026,502.42198833,0.0001501,2]
[330791167,1719789611642,1411.58,0.0001501,2]
[330791168,1719789612182,504.12645499,0.0001501,2]
[330791169,1719789613883,500.0,0.0001501,2]
[330791170,1719789613949,169.57752147,0.0001501,2]
[330791171,1719789615727,500.0,0.0001501,2]
[330791172,1719789616103,500.0,0.0001501,2]
[330791173,1719789621233,736.97,0.0001501,2]
[330791174,1719789622985,502.96937943,0.0001501,2]
[330791175,1719789625074,500.0,0.0001501,2]
[330791176,1719789627061,538.82842922,0.0001501,2]
[330791177,1719789627261,4170.97,0.0001501,2]
[330791178,1719789630068,500.0,0.0001501,2]
[330791179,1719789632679,531.68564142,0.0001501,2]
[330791180,1719789634252,1061.29,0.0001501,2]
[330791181,1719789636063,234.21385332,0.00014911,2]
[330791182,1719789638871,500.0,0.0001501,2]
[330791183,1719789639781,966.92,0.0001501,2]
[330791184,1719789647166,500.0,0.0001501,2]
[330791185,1719789650074,500.0,0.0001501,2]
[330791186,1719789650297,9538.31,0.0001501,2]
[330791187,1719789653267,500.0,0.0001501,2]
[330791188,1719789654938,1095.99,0.0001501,2]
[330791189,1719789654996,500.0,0.0001501,2]
[330791190,1719789656239,500.0,0.0001501,2]
[330791191,1719789662405,236.91671621,0.0001501,2]
[330791192,1719789663553,500.0,0.0001501,2]